bitfinex-derivatives/quotes_BTCF0:USTF0_20251119
["timestamp","ask_amount","ask_price","bid_price","bid_amount"]
[1763523101984,0.7306818,92283.0,92282.0,0.0001626]
[1763523102287,0.1084688,92260.0,92259.0,0.03552]
[1763523102590,0.1084688,92260.0,92259.0,0.01398]
[1763523102980,0.1084688,92260.0,92259.0,0.03552]
[1763523103189,0.1084688,92260.0,92259.0,0.05776]
[1763523103577,0.26144,92261.0,92260.0,0.04597803]
[1763523103782,0.3608,92267.0,92266.0,0.04378]
[1763523104089,0.1084688,92260.0,92259.0,0.01398]
[1763523104390,0.1084688,92260.0,92259.0,0.05776]
[1763523104984,0.1084794,92251.0,92250.0,0.0579226]
[1763523105190,0.1084794,92251.0,92250.0,0.06012063]
[1763523106494,0.1084794,92251.0,92250.0,0.06112063]
[1763523106695,0.1084794,92251.0,92250.0,0.06212063]
[1763523107397,0.1084794,92251.0,92250.0,0.03988063]
[1763523107597,0.1084794,92251.0,92250.0,0.01834063]
[1763523108489,0.1084794,92251.0,92250.0,0.06212063]
[1763523108796,0.1084794,92251.0,92250.0,0.06112063]
[1763523109388,0.26148,92254.0,92253.0,0.04378]
[1763523109590,0.3608,92256.0,92255.0,0.04378]
[1763523109898,0.62232,92256.0,92255.0,0.04378]
[1763523110597,0.1084794,92251.0,92250.0,0.01634063]
[1763523110899,0.1084794,92251.0,92250.0,0.00236063]
[1763523112087,0.10849,92242.0,92232.0,0.01398]
[1763523112287,0.1085112,92224.0,92223.0,0.05776]
[1763523113392,0.1085112,92224.0,92223.0,0.05876]
[1763523113799,0.1085112,92224.0,92223.0,0.05776]
[1763523113998,0.1085112,92224.0,92223.0,0.05876]
[1763523114199,0.1075112,92224.0,92223.0,0.05876]
[1763523114702,0.26156,92231.0,92223.0,0.05876]
[1763523114903,0.0001626,92233.0,92232.0,0.05776]
[1763523115104,0.2618026,92233.0,92232.0,0.05776]
[1763523117498,0.0001626,92233.0,92232.0,0.41856]
[1763523118208,0.26164,92244.0,92243.0,0.04502]
[1763523118406,0.1085112,92224.0,92214.0,0.059]
[1763523118701,0.6509336,92243.0,92205.0,0.0136]
[1763523118702,0.1085312,92207.0,92205.0,0.0136]
[1763523119002,0.26204,92210.0,92209.0,0.04502]
[1763523119402,0.1085288,92209.0,92205.0,0.0136]
[1763523119699,0.3598,92207.0,92206.0,0.04529113]
[1763523120402,0.3588,92207.0,92206.0,0.04529113]
[1763523121211,0.3588,92207.0,92206.0,0.00027113]
[1763523121501,0.3588,92207.0,92206.0,0.04529113]
[1763523124812,0.4673312,92207.0,92206.0,0.04529113]
[1763523129215,0.4673312,92207.0,92206.0,0.00027113]
[1763523130911,0.1085382,92201.0,92200.0,0.0001626]
[1763523131117,0.3707382,92201.0,92200.0,0.0001626]
[1763523131518,0.3707382,92201.0,92200.0,0.0451826]
[1763523131826,0.2622,92201.0,92200.0,0.04738063]
[1763523132117,0.3588,92207.0,92206.0,0.04502]
[1763523132314,0.621,92207.0,92206.0,0.04502]
[1763523134718,0.1085324,92206.0,92205.0,0.0136]
[1763523134909,0.1085324,92206.0,92200.0,0.00236063]
[1763523135109,0.621,92207.0,92206.0,0.02178]
[1763523135314,0.621,92207.0,92206.0,0.04502]
[1763523137912,0.3608,92216.0,92213.0,0.04502]
[1763523138121,0.2622,92214.0,92213.0,0.04502]
[1763523139223,0.2632,92214.0,92213.0,0.04502]
[1763523140322,0.34851385,92214.0,92213.0,0.04502]
[1763523140513,0.34951385,92214.0,92213.0,0.04502]
[1763523141221,0.1085241,92213.0,92210.0,0.00219803]
[1763523141422,0.1085323,92206.0,92205.0,0.0136]
[1763523141620,0.3707323,92206.0,92205.0,0.0136]
[1763523142123,0.7315323,92206.0,92205.0,0.0136]
[1763523145428,0.7315323,92206.0,92205.0,0.03621]
[1763523145624,0.7315323,92206.0,92205.0,0.05885]
[1763523147629,0.1085382,92201.0,92200.0,0.0351826]
[1763523147928,0.1085382,92201.0,92200.0,0.05918063]
[1763523148522,0.1085382,92201.0,92200.0,0.01529063]
[1763523148918,0.1085382,92201.0,92200.0,0.03738063]
[1763523149126,0.1085382,92201.0,92200.0,0.05918063]
[1763523149628,0.1085336,92205.0,92200.0,0.37609063]
[1763523149933,0.1085336,92205.0,92204.0,0.04389]
[1763523150128,0.3706536,92205.0,92204.0,0.04389]
[1763523150432,0.1085266,92211.0,92210.0,0.04389]
[1763523150621,0.1085266,92211.0,92210.0,0.04608803]
[1763523150823,0.3706466,92211.0,92210.0,0.04608803]
[1763523151123,0.3706466,92211.0,92210.0,0.02428803]
[1763523151323,0.3706466,92211.0,92210.0,0.04608803]
[1763523151631,0.001,92211.0,92210.0,0.04608803]
[1763523152924,0.002,92211.0,92210.0,0.04608803]
[1763523160038,0.0001626,92219.0,92210.0,0.04608803]
[1763523160039,0.0001626,92219.0,92215.0,0.1524118]
[1763523160331,0.00056,92233.0,92232.0,0.05682]
[1763523160537,0.00056,92217.0,92216.0,0.05682]
[1763523162029,0.001,92219.0,92218.0,0.04389]
[1763523162832,0.1087903,92225.0,92224.0,0.05682]
[1763523163131,0.1090703,92225.0,92224.0,0.05682]
[1763523163336,0.1090747,92221.0,92220.0,0.00219803]
[1763523163839,0.00056,92221.0,92220.0,0.04608803]
[1763523164432,0.00156,92221.0,92220.0,0.04608803]
[1763523165244,0.001,92221.0,92220.0,0.15460393]
[1763523165735,0.2622,92223.0,92222.0,0.04389]
[1763523165933,0.3712729,92223.0,92222.0,0.04389]
[1763523166134,0.26276,92223.0,92222.0,0.04389]
[1763523167444,0.001,92223.0,92222.0,0.04389]
[1763523167942,0.3608,92249.0,92235.0,0.1523882]
[1763523168244,0.00027102,92246.0,92245.0,0.04389]
[1763523168737,0.02284102,92246.0,92245.0,0.04389]
[1763523169543,0.04594102,92246.0,92245.0,0.04389]
[1763523169739,0.04694102,92246.0,92240.0,0.01512803]
[1763523169943,0.04694102,92246.0,92240.0,0.00219803]
[1763523169944,0.1662512,92241.0,92240.0,0.00219803]
[1763523170340,0.1541612,92241.0,92240.0,0.00219803]
[1763523171036,0.1662512,92241.0,92240.0,0.00219803]
[1763523171244,0.1541659,92237.0,92236.0,0.0001626]
[1763523171540,0.4163259,92237.0,92236.0,0.0001626]
[1763523172341,0.1541894,92217.0,92216.0,0.02209]
[1763523172549,0.04567,92215.0,92214.0,0.3608]
[1763523172844,0.04567,92215.0,92214.0,0.40469]
[1763523173546,0.04567,92215.0,92214.0,0.41762]
[1763523174344,0.04567,92215.0,92214.0,0.3608]
[1763523174745,0.04567,92211.0,92210.0,0.04608803]
[1763523175137,0.04567,92211.0,92210.0,0.00219803]
[1763523175337,0.04567,92211.0,92210.0,0.04608803]
[1763523175546,0.02257,92211.0,92210.0,0.04608803]
[1763523176046,0.04667,92211.0,92210.0,0.04608803]
[1763523176850,0.04567,92211.0,92210.0,0.04608803]
[1763523177842,0.02257,92211.0,92210.0,0.04608803]
[1763523178055,0.2622,92212.0,92211.0,0.04457]
[1763523178545,0.30688,92212.0,92211.0,0.04457]
[1763523179548,0.30788,92212.0,92211.0,0.04457]
[1763523180336,0.1532124,92206.0,92205.0,0.3609626]
[1763523180541,0.1532124,92206.0,92205.0,0.0001626]
[1763523182838,0.1532124,92206.0,92205.0,0.0574326]
[1763523183043,0.1532124,92206.0,92205.0,0.0225526]
[1763523184645,0.1532124,92206.0,92205.0,0.0447326]
[1763523185048,0.1532124,92206.0,92205.0,0.0225526]
[1763523185239,0.1532124,92206.0,92205.0,0.0447326]
[1763523185444,0.1532124,92206.0,92205.0,0.0001626]
[1763523185946,0.1532124,92206.0,92205.0,0.0225526]
[1763523186145,0.04468,92206.0,92205.0,0.0574326]
[1763523186353,0.3068,92206.0,92205.0,0.0574326]
[1763523187959,0.37068182,92215.0,92214.0,0.04457]
[1763523188339,0.63276182,92215.0,92214.0,0.04457]
[1763523188550,0.37068182,92215.0,92214.0,0.04457]
[1763523188853,0.63276182,92215.0,92214.0,0.04457]
[1763523189048,0.50314113,92215.0,92214.0,0.04457]
[1763523189253,0.50514113,92215.0,92214.0,0.04457]
[1763523189549,0.08985893,92215.0,92214.0,0.04457]
[1763523189752,0.002,92215.0,92214.0,0.04457]
[1763523190254,0.002,92215.0,92210.0,0.02458803]
[1763523190255,0.1532065,92211.0,92210.0,0.02458803]
[1763523191057,0.1532123,92206.0,92205.0,0.0001626]
[1763523191255,0.4152923,92206.0,92205.0,0.0001626]
[1763523191859,0.30676,92206.0,92205.0,0.0447326]
[1763523192053,0.28373,92206.0,92205.0,0.0447326]
[1763523192451,0.30676,92206.0,92205.0,0.0001626]
[1763523192756,0.30676,92206.0,92205.0,0.0225526]
[1763523193146,0.30676,92206.0,92205.0,0.0447326]
[1763523194055,0.30676,92206.0,92205.0,0.0001626]
[1763523196555,0.30676,92206.0,92193.0,0.05146195]
[1763523196556,0.04468,92194.0,92193.0,0.05146195]
[1763523196759,0.3068,92194.0,92193.0,0.05146195]
[1763523196949,0.4153465,92194.0,92193.0,0.09603195]
[1763523198651,0.4153465,92194.0,92193.0,0.05146195]
[1763523200758,0.4153465,92194.0,92193.0,0.07385195]
[1763523201060,0.4153465,92194.0,92193.0,0.09603195]
[1763523201449,0.4153465,92194.0,92193.0,0.05146195]
[1763523204756,0.1529102,92200.0,92199.0,0.04413]
[1763523204951,0.4149902,92200.0,92199.0,0.04413]
[1763523205151,0.04437,92194.0,92193.0,0.09559195]
[1763523205555,0.1529165,92194.0,92193.0,0.09559195]
[1763523206158,0.1529165,92194.0,92193.0,0.05146195]
[1763523211163,0.1529165,92194.0,92193.0,0.09505195]
[1763523212864,0.04437,92194.0,92193.0,0.09505195]
[1763523214665,0.04437,92194.0,92193.0,0.05146195]
[1763523214860,0.04437,92194.0,92193.0,0.09505195]
[1763523216667,0.04503,92200.0,92197.0,0.01358]
[1763523216860,0.1085418,92198.0,92197.0,0.01358]
[1763523217058,0.1305818,92198.0,92197.0,0.05717]
[1763523217260,0.3608,92201.0,92200.0,0.04578803]
[1763523217563,0.4693382,92201.0,92200.0,0.04578803]
[1763523218064,0.38284,92201.0,92200.0,0.04578803]
[1763523218465,0.38284,92201.0,92200.0,0.15432743]
[1763523219566,0.4913782,92201.0,92200.0,0.04578803]
[1763523219767,0.5143682,92201.0,92200.0,0.04578803]
[1763523220862,0.40583,92201.0,92200.0,0.04578803]
[1763523221063,0.3608,92201.0,92200.0,0.15432743]
[1763523221567,0.28416269,92203.0,92202.0,0.04359]
[1763523221964,0.26212269,92203.0,92202.0,0.04359]
[1763523222166,0.28416269,92203.0,92202.0,0.04359]
[1763523222369,0.30715269,92203.0,92202.0,0.04359]
[1763523222771,0.41568859,92203.0,92202.0,0.04359]
[1763523224873,0.30715269,92203.0,92202.0,0.1521271]
[1763523225074,0.28108407,92203.0,92202.0,0.1521271]
[1763523225672,0.38961997,92203.0,92202.0,0.04359]
[1763523228071,0.00016269,92212.0,92211.0,0.05717]
[1763523229591,0.15471799,92212.0,92211.0,0.05717]
[1763523230382,0.15571799,92212.0,92211.0,0.05717]
[1763523230785,0.04503,92211.0,92210.0,0.00219803]
[1763523230991,0.1535565,92211.0,92210.0,0.04578803]
[1763523231192,0.4154365,92211.0,92210.0,0.04578803]
[1763523231994,0.4164365,92211.0,92210.0,0.04578803]
[1763523232185,0.4174365,92211.0,92210.0,0.04578803]
[1763523233796,0.30891,92211.0,92210.0,0.04578803]
[1763523235393,0.28592,92211.0,92210.0,0.04578803]
[1763523235698,0.26388,92211.0,92210.0,0.04578803]
[1763523238791,0.002,92211.0,92210.0,0.04578803]
[1763523239297,0.02391,92211.0,92210.0,0.04578803]
[1763523239499,0.002,92211.0,92210.0,0.04578803]
[1763523240401,2.69e-06,92212.0,92211.0,0.1672765]
[1763523240599,0.1304185,92227.0,92226.0,0.1538288]
[1763523240789,0.1518985,92227.0,92226.0,0.1538288]
[1763523240992,0.1518985,92227.0,92226.0,0.04532]
[1763523241186,0.1518985,92227.0,92217.0,0.38312]
[1763523241187,0.04339,92218.0,92217.0,0.38312]
[1763523241393,0.04339,92218.0,92217.0,0.3608]
[1763523241605,0.05548,92218.0,92217.0,0.3608]
[1763523241797,0.1519188,92209.0,92208.0,0.04548269]
[1763523241991,0.1519188,92209.0,92208.0,0.00016269]
[1763523242691,0.1519188,92209.0,92208.0,0.02248269]
[1763523243101,0.1529188,92209.0,92208.0,0.02248269]
[1763523243303,0.1539188,92209.0,92208.0,0.02248269]
[1763523243505,0.1539188,92209.0,92208.0,0.00016269]
[1763523244502,0.04539,92209.0,92208.0,0.00016269]
[1763523244703,0.04539,92209.0,92208.0,0.04548269]
[1763523250894,0.04339,92195.0,92190.0,0.01343]
[1763523251099,0.1519353,92195.0,92190.0,0.01562803]
[1763523251699,0.1519353,92195.0,92194.0,0.38312]
[1763523251996,0.1519353,92195.0,92194.0,0.40612]
[1763523252493,0.1519353,92195.0,92194.0,0.04532]
[1763523252899,0.04339,92194.0,92190.0,0.00219803]
[1763523253400,0.12990306,92194.0,92190.0,0.00219803]
[1763523257515,0.13090306,92194.0,92190.0,0.00219803]
[1763523257914,0.13190306,92194.0,92190.0,0.00219803]
[1763523259112,0.13090306,92194.0,92190.0,0.00219803]
[1763523259614,0.13090306,92194.0,92185.0,0.00016269]
[1763523260407,0.12990306,92194.0,92185.0,0.00016269]
[1763523261117,0.02990306,92194.0,92185.0,0.00016269]
[1763523261414,0.1085453,92195.0,92185.0,0.00016269]
[1763523262017,0.19689778,92195.0,92185.0,0.00016269]
[1763523264120,0.19689778,92195.0,92193.0,0.03148225]
[1763523266725,0.19689778,92195.0,92194.0,0.04365]
[1763523267329,0.08835248,92195.0,92194.0,0.04365]
[1763523267524,0.3608,92197.0,92196.0,0.05795]
[1763523267713,0.62256,92197.0,92196.0,0.03489]
[1763523267913,0.62256,92197.0,92196.0,0.05892]
[1763523269721,0.70729056,92197.0,92196.0,0.05892]
[1763523270524,0.1085441,92196.0,92193.0,0.03148225]
[1763523271128,0.1085441,92196.0,92193.0,0.07702225]
[1763523273522,0.1085441,92196.0,92193.0,0.03148225]
[1763523275129,0.1085441,92196.0,92193.0,0.07702225]
[1763523276928,0.1085441,92196.0,92193.0,0.03148225]
[1763523280737,0.1085559,92186.0,92185.0,0.00016269]
[1763523280941,0.7310359,92186.0,92185.0,0.00016269]
[1763523282938,0.7310359,92186.0,92185.0,0.02264269]
[1763523284042,0.7310359,92186.0,92185.0,0.04570269]
[1763523285139,0.3608,92186.0,92185.0,0.04570269]
[1763523285344,0.62248,92186.0,92185.0,0.04570269]
[1763523287241,0.62248,92186.0,92185.0,0.15425979]
[1763523287947,0.62248,92186.0,92185.0,0.04570269]
[1763523294645,0.62248,92186.0,92185.0,0.00016269]
[1763523294850,0.62248,92186.0,92185.0,0.02264269]
[1763523296644,0.62248,92186.0,92185.0,0.04570269]
[1763523297646,0.62248,92186.0,92185.0,0.00016269]
[1763523302251,0.1085641,92179.0,92162.0,0.3608]
[1763523302458,0.4693712,92173.0,92160.0,0.01278]
[1763523302753,0.108578,92168.0,92166.0,0.00027125]
[1763523302951,0.1085881,92159.0,92154.0,0.05733]
[1763523303145,0.3608,92155.0,92154.0,0.05733]
[1763523303842,0.62248,92158.0,92157.0,0.04455]
[1763523305250,0.62248,92158.0,92157.0,0.1531401]
[1763523305443,0.20762773,92164.0,92154.0,0.01278]
[1763523305444,0.00016269,92164.0,92163.0,0.153133]
[1763523305641,0.34961369,92164.0,92163.0,0.153133]
[1763523305847,0.26188269,92164.0,92163.0,0.513933]
[1763523306043,0.00016269,92164.0,92163.0,0.513933]
[1763523306245,0.10373252,92173.0,92172.0,0.1531224]
[1763523306555,0.10373252,92190.0,92189.0,0.1085524]
[1763523306752,0.01080319,92201.0,92200.0,0.04455]
[1763523306957,0.01080319,92201.0,92200.0,0.04674803]
[1763523306958,0.26172,92201.0,92200.0,0.04674803]
[1763523308150,0.26172,92201.0,92200.0,0.15528743]
[1763523308857,0.001,92201.0,92200.0,0.04674803]
[1763523309553,0.1095382,92201.0,92200.0,0.04674803]
[1763523309948,0.001,92201.0,92200.0,0.04674803]
[1763523310148,0.26172,92202.0,92201.0,0.04455]
[1763523310652,0.62252,92202.0,92191.0,0.02223269]
[1763523310857,0.3608,92192.0,92191.0,0.02223269]
[1763523311045,0.62252,92192.0,92191.0,0.02223269]
[1763523311248,0.62252,92192.0,92191.0,0.04471269]
[1763523315552,0.3608,92192.0,92191.0,0.04471269]
[1763523315859,0.26176,92194.0,92193.0,0.04455]
[1763523316156,0.26176,92194.0,92193.0,0.02207]
[1763523316960,0.62256,92194.0,92193.0,0.02207]
[1763523317161,0.1085477,92193.0,92191.0,0.00016269]
[1763523317655,0.62256,92194.0,92191.0,0.04471269]
[1763523317858,0.62256,92194.0,92193.0,0.04455]
[1763523318155,0.62256,92194.0,92193.0,0.02207]
[1763523318352,0.62256,92194.0,92193.0,0.04455]
[1763523318750,0.62256,92194.0,92193.0,0.02207]
[1763523319853,0.62256,92194.0,92193.0,0.04455]
[1763523320754,0.7311065,92194.0,92193.0,0.04455]
[1763523322464,0.7311065,92194.0,92191.0,0.00016269]
[1763523322865,0.7311065,92194.0,92191.0,0.02118269]
[1763523323257,0.7311065,92194.0,92191.0,0.04424269]
[1763523327061,0.7311065,92194.0,92191.0,0.00016269]
[1763523327461,0.1085665,92177.0,92176.0,0.05567]
[1763523327657,0.1085748,92170.0,92169.0,0.0357]
[1763523327867,0.1085748,92170.0,92162.0,0.01356]
[1763523327868,0.108583,92163.0,92162.0,0.05835]
[1763523328068,0.370303,92163.0,92162.0,0.05835]
[1763523328270,0.370303,92163.0,92162.0,0.03648]
[1763523328470,0.370303,92163.0,92160.0,0.00219803]
[1763523328666,0.1085912,92156.0,92153.0,0.00016269]
[1763523328877,0.26176,92156.0,92153.0,0.00016269]
[1763523329176,0.26176,92156.0,92153.0,0.04495269]
[1763523329476,0.26176,92156.0,92155.0,0.04479]
[1763523330076,0.26076,92156.0,92155.0,0.04479]
[1763523331074,0.26076,92156.0,92155.0,0.02292]
[1763523331275,0.34905447,92156.0,92153.0,0.00016269]
[1763523331574,0.1085924,92155.0,92153.0,0.00016269]
[1763523332676,0.1085924,92155.0,92153.0,0.02308269]
[1763523332875,0.34905447,92156.0,92153.0,0.04495269]
[1763523333077,0.34905447,92156.0,92153.0,0.15354639]
[1763523333267,0.34905447,92156.0,92153.0,0.04495269]
[1763523334179,0.1085924,92155.0,92153.0,0.04495269]
[1763523335471,0.34905447,92156.0,92155.0,0.05777]
[1763523335772,0.34905447,92156.0,92155.0,0.1663624]
[1763523335968,0.34905447,92156.0,92155.0,0.05777]
[1763523336371,0.34905447,92156.0,92155.0,0.0359]
[1763523336572,0.34905447,92156.0,92155.0,0.05777]
[1763523339382,0.34905447,92156.0,92155.0,0.1663624]
[1763523339682,0.45764567,92156.0,92155.0,0.05777]
[1763523340680,0.45764567,92156.0,92153.0,0.00016269]
[1763523340881,0.45764567,92156.0,92155.0,0.05777]
[1763523341086,0.34905447,92156.0,92155.0,0.05777]
[1763523348886,0.08829447,92156.0,92155.0,0.05777]
[1763523349081,0.26176,92156.0,92155.0,0.05777]
[1763523351587,0.26176,92156.0,92136.0,0.01298]
[1763523351588,0.1086077,92142.0,92141.0,0.0359]
[1763523351789,0.1086207,92131.0,92130.0,0.01298]
[1763523351988,0.3703807,92131.0,92130.0,0.05777]
[1763523352178,1.8703807,92131.0,92130.0,0.05777]
[1763523352779,1.8703807,92131.0,92124.0,0.01298]
[1763523352780,0.1086242,92128.0,92127.0,0.0449035]
[1763523352992,1.76176,92131.0,92130.0,0.02511803]
[1763523353288,1.76176,92131.0,92130.0,0.02611803]
[1763523353691,1.76176,92131.0,92130.0,0.00219803]
[1763523354291,1.77246017,92131.0,92130.0,0.00219803]
[1763523355393,0.1086219,92130.0,92127.0,0.0001135]
[1763523355784,1.77246017,92131.0,92127.0,0.0449035]
[1763523356793,1.77246017,92131.0,92127.0,0.0459035]
[1763523357095,0.1086219,92130.0,92127.0,0.0459035]
[1763523357288,1.77246017,92131.0,92127.0,0.0459035]
[1763523357488,0.1086219,92130.0,92127.0,0.0240335]
[1763523357686,0.1086219,92130.0,92127.0,0.0465335]
[1763523358878,0.1086242,92128.0,92127.0,0.0465335]
[1763523359084,0.19536431,92128.0,92127.0,0.0465335]
[1763523359794,0.19536431,92128.0,92127.0,0.0011135]
[1763523360590,0.19536431,92128.0,92127.0,0.0376535]
[1763523360992,0.19536431,92128.0,92127.0,0.0011135]
[1763523361195,0.08674011,92128.0,92127.0,0.0601535]
[1763523361392,0.3704634,92129.0,92127.0,0.0376535]
[1763523361593,0.3704634,92129.0,92127.0,0.0591535]
[1763523361788,0.3704634,92129.0,92127.0,0.0601535]
[1763523363291,0.3704634,92129.0,92128.0,0.0452]
[1763523363694,0.26184,92129.0,92128.0,0.0452]
[1763523365596,0.1086243,92128.0,92127.0,0.0001135]
[1763523365993,0.26184,92129.0,92128.0,0.0452]
[1763523366402,1.51070017,92131.0,92130.0,0.04739803]
[1763523366603,1.77254017,92131.0,92130.0,0.04739803]
[1763523367190,1.77254017,92131.0,92130.0,0.00219803]
[1763523367394,0.1086219,92130.0,92127.0,0.0591535]
[1763523367797,0.1086219,92130.0,92127.0,0.0601535]
[1763523368399,0.1086219,92130.0,92127.0,0.0591535]
[1763523368600,0.1086219,92130.0,92127.0,0.0366535]
[1763523368905,0.1096219,92130.0,92127.0,0.0001135]
[1763523369410,0.1096219,92130.0,92127.0,0.0591535]
[1763523369597,0.1096219,92130.0,92127.0,0.0139535]
[1763523369906,0.1096219,92130.0,92112.0,0.05818]
[1763523369907,0.1086419,92113.0,92112.0,0.05818]
[1763523370106,0.7312819,92113.0,92112.0,0.05818]
[1763523370905,0.73140697,92113.0,92112.0,0.05818]
[1763523371100,0.108649,92107.0,92106.0,0.05818]
[1763523371306,0.370529,92107.0,92106.0,0.03568]
[1763523371497,0.37066303,92107.0,92106.0,0.03568]
[1763523371698,0.1086561,92101.0,92100.0,0.05904]
[1763523371898,0.46959032,92101.0,92100.0,0.05904]
[1763523372107,0.46959032,92101.0,92100.0,0.06123803]
[1763523372498,0.46959032,92101.0,92100.0,0.05904]
[1763523372905,0.4694561,92101.0,92100.0,0.05904]
[1763523373809,0.4694561,92101.0,92100.0,0.03654]
[1763523373997,0.1086691,92090.0,92089.0,0.00471616]
[1763523374301,0.1086878,92075.0,92074.0,0.0452]
[1763523374507,1.07262235,92075.0,92064.0,0.05904]
[1763523374702,0.3608,92065.0,92064.0,0.05904]
[1763523374904,0.1086998,92064.0,92060.0,0.00219803]
[1763523375102,0.1087033,92061.0,92057.0,0.01384]
[1763523375297,9.991e-05,92060.0,92051.0,0.00010606]
[1763523375497,0.3608,92052.0,92051.0,0.00010606]
[1763523375702,0.6228847,92052.0,92051.0,0.00010606]
[1763523375898,0.6218847,92052.0,92051.0,0.00010606]
[1763523376211,0.6218847,92052.0,92051.0,0.04530606]
[1763523376396,0.6218847,92052.0,92051.0,0.00010606]
[1763523377699,0.62176,92052.0,92048.0,0.05904]
[1763523377903,0.1087151,92051.0,92048.0,0.01384]
[1763523378211,0.7304745,92052.0,92048.0,0.01384]
[1763523378603,0.1087163,92050.0,92048.0,0.01384]
[1763523379003,0.62176,92052.0,92048.0,0.01384]
[1763523379306,0.62176,92052.0,92048.0,0.05904]
[1763523379612,0.1087151,92051.0,92048.0,0.05904]
[1763523379809,0.62176,92052.0,92048.0,0.05904]
[1763523380107,0.1087198,92047.0,92040.0,0.00219803]
[1763523380300,0.08849453,92047.0,92018.0,0.1087535]
[1763523380501,0.3608,92033.0,92024.0,0.03654]
[1763523380707,0.26204,92032.0,92031.0,0.0452]
[1763523381208,0.3608,92033.0,92032.0,0.05904]
[1763523381711,0.08673401,92047.0,92046.0,0.153921]
[1763523381912,0.26212,92047.0,92046.0,0.0452]
[1763523382101,0.347554,92047.0,92040.0,0.05821]
[1763523382306,0.3608,92041.0,92040.0,0.01603803]
[1763523382513,0.3608,92041.0,92040.0,0.03902803]
[1763523382809,0.347554,92047.0,92046.0,0.04466]
[1763523383007,0.34759424,92047.0,92046.0,0.04466]
[1763523384005,0.34759424,92047.0,92032.0,0.01384]
[1763523384006,0.349554,92047.0,92032.0,0.01384]
[1763523384208,0.1087364,92033.0,92015.0,0.3608]
[1763523384403,0.26224,92032.0,92015.0,0.3608]
[1763523384598,0.26228024,92032.0,92015.0,0.3608]
[1763523384811,0.26224,92032.0,92015.0,0.3608]
[1763523385114,0.26224,92032.0,92031.0,0.04482296]
[1763523385407,0.3608,92033.0,92031.0,0.04482296]
[1763523385609,0.3608,92033.0,92032.0,0.04466]
[1763523385811,0.3608,92033.0,92007.0,0.37418]
[1763523385816,0.00219704,92030.0,91989.0,0.01338]
[1763523386001,0.3608,91993.0,91952.0,0.3608]
[1763523386313,0.1088329,91952.0,91951.0,0.04466]
[1763523386507,0.00219803,91950.0,91926.0,0.01365196]
[1763523386714,0.13008367,91936.0,91935.0,0.05804]
[1763523387008,0.02192,91931.0,91930.0,0.00073267]
[1763523387201,9.867e-05,91936.0,91935.0,0.04466]
[1763523387407,0.26317867,91936.0,91935.0,0.04466]
[1763523387807,9.867e-05,91936.0,91935.0,0.04466]
[1763523388014,0.26321867,91936.0,91935.0,0.04466]
[1763523388216,0.00016308,91945.0,91944.0,0.04308]
[1763523388406,0.1088123,91969.0,91960.0,0.04308]
[1763523388601,0.13008367,91970.0,91960.0,0.04381267]
[1763523388602,0.2632,91961.0,91960.0,0.04381267]
[1763523388915,0.30796,91961.0,91960.0,0.00073267]
[1763523389108,0.30796,91961.0,91960.0,0.04381267]
[1763523389314,0.2632,91961.0,91960.0,0.04381267]
[1763523389910,0.2642,91961.0,91960.0,0.04381267]
[1763523390112,0.30896,91961.0,91960.0,0.00073267]
[1763523390305,0.1305504,91945.0,91944.0,0.04308]
[1763523390510,0.308,91945.0,91944.0,0.04308]
[1763523391112,0.28495,91945.0,91944.0,0.04308]
[1763523391310,0.308,91945.0,91944.0,0.04308]
[1763523391514,0.3608,91950.0,91949.0,0.04308]
[1763523391708,0.67107803,91950.0,91949.0,0.04308]
[1763523392412,0.67107803,91950.0,91949.0,0.02156]
[1763523392713,0.00219803,91950.0,91949.0,0.04308]
[1763523392915,0.26348308,91954.0,91953.0,0.04308]
[1763523394019,0.26355669,91954.0,91953.0,0.04308]
[1763523394312,0.3608,91971.0,91970.0,0.04308]
[1763523394512,0.62416,91971.0,91970.0,0.04381267]
[1763523395220,0.3608,91971.0,91970.0,0.04381267]
[1763523395420,0.26336,91972.0,91971.0,0.04308]
[1763523396321,0.28507,91972.0,91971.0,0.04308]
[1763523396522,0.30812,91972.0,91971.0,0.02156]
[1763523396719,0.30812,91972.0,91970.0,0.00073267]
[1763523396720,0.1545697,91971.0,91970.0,0.00073267]
[1763523397421,0.1535697,91971.0,91970.0,0.00073267]
[1763523398820,0.2654,91972.0,91971.0,0.04308]
[1763523399121,0.2644,91972.0,91971.0,0.04308]
[1763523399322,0.2634,91972.0,91971.0,0.04308]
[1763523399516,0.08898438,91979.0,91978.0,0.04308]
[1763523399715,0.2634,91979.0,91978.0,0.04308]
[1763523400109,0.00219803,91980.0,91968.0,0.01374]
[1763523400110,0.00219803,91980.0,91979.0,0.04308]
[1763523400321,0.26555803,91980.0,91979.0,0.04308]
[1763523400820,0.31031803,91980.0,91979.0,0.04308]
[1763523401224,0.04695803,91980.0,91979.0,0.04308]
[1763523401411,0.02305,91969.0,91968.0,0.02156]
[1763523401617,0.02305,91969.0,91953.0,0.4696304]
[1763523401618,0.04476,91963.0,91953.0,0.4696304]
[1763523401928,0.04476,91963.0,91962.0,0.02172308]
[1763523402315,0.04476,91963.0,91962.0,0.04324308]
[1763523402510,0.04476,91963.0,91962.0,0.15206338]
[1763523402722,0.04576,91963.0,91962.0,0.04324308]
[1763523402916,0.04576,91963.0,91962.0,0.15206338]
[1763523403119,0.04676,91963.0,91962.0,0.04324308]
[1763523403419,0.04676,91963.0,91962.0,0.00016308]
[1763523403920,0.40756,91963.0,91962.0,0.00016308]
[1763523405118,0.40756,91963.0,91953.0,0.3608]
[1763523405119,0.1535898,91954.0,91953.0,0.3608]
[1763523405319,0.4169498,91954.0,91953.0,0.3608]
[1763523405720,0.30812,91954.0,91953.0,0.40388]
[1763523406114,0.40656,91963.0,91962.0,0.04308]
[1763523406321,0.66896,91963.0,91962.0,0.02156]
[1763523406826,0.669,91963.0,91962.0,0.02156]
[1763523407210,0.669,91963.0,91962.0,0.04308]
[1763523407409,0.40556,91963.0,91962.0,0.04308]
[1763523407624,0.669,91963.0,91962.0,0.04308]
[1763523408316,0.67,91963.0,91962.0,0.1519003]
[1763523408510,0.671,91963.0,91962.0,0.04308]
[1763523408723,0.671,91963.0,91962.0,0.02156]
[1763523409315,0.64795,91963.0,91962.0,0.04308]
[1763523409516,0.62624,91963.0,91962.0,0.04308]
[1763523409720,0.002,91963.0,91962.0,0.04308]